fUST/lending_fUST_20250929
["ID","MTS","AMOUNT","RATE_DAILY","PERIOD"]
[388400041,1759155920819,-2369.29,0.00023988,2]
[388400042,1759155921171,-185.28045226,0.00023989,2]
[388400043,1759155921205,-687.72,0.00023989,2]
[388400044,1759155921245,-1328.65,0.00023989,2]
[388400045,1759155921281,-866.19,0.00023989,2]
[388400046,1759155921317,-688.56909548,0.00023989,2]
[388400047,1759155921688,-2487.19090452,0.00023989,2]
[388400048,1759155921738,-480.0,0.00023989,2]
[388400049,1759155921770,-480.0,0.00023989,2]
[388400050,1759155921804,-793.46,0.00023989,2]
[388400051,1759155921869,480.0,0.00023989,2]
[388400052,1759155926005,564.72,0.00023989,2]
[388400053,1759155926716,1148.03,0.00023989,2]
[388400054,1759155926852,4300.34,0.00023989,2]
[388400055,1759155926882,699.66,0.00023989,2]
[388400056,1759155929122,480.0,0.00023988,2]
[388400057,1759155929343,480.0,0.00023988,2]
[388400058,1759155930507,2527.34,0.00023989,2]
[388400059,1759155934824,5000.0,0.00023989,2]
[388400060,1759155934940,480.0,0.00023989,2]
[388400061,1759155936243,333.01,0.00023988,2]
[388400062,1759155936283,5966.44,0.00023988,2]
[388400063,1759155936512,380.0,0.00023989,2]
[388400064,1759155937832,1037.3,0.00023989,2]
[388400065,1759155939009,975.21,0.00023989,2]
[388400066,1759155939915,951.22,0.00023989,2]
[388400067,1759155944062,172.0,9.3e-07,2]
[388400068,1759155946093,172.0,9.3e-07,2]
[388400069,1759155946746,-738.35,0.00023988,2]
[388400070,1759155946841,-2720.06,0.00023989,2]
[388400071,1759155946948,-10000.01,0.00023989,2]
[388400072,1759155947107,-1666.58,0.00023988,2]
[388400073,1759155947162,172.0,9.3e-07,2]
[388400074,1759155947180,-6666.85,0.00023989,2]
[388400075,1759155947223,-10000.01,0.00023989,2]
[388400076,1759155949152,5000.0,0.00023062,2]
[388400077,1759155949196,1926.73289786,0.00019178,2]
[388400078,1759155956799,-5000.0,0.00023749,2]
[388400079,1759155956838,-0.01,0.00023988,2]
[388400080,1759155966788,-5000.0,0.00023748,2]
[388400081,1759155966829,-0.01,0.00023988,2]
[388400082,1759155967032,-624.98,0.00023988,2]
[388400083,1759155967064,-781.92,0.00023988,2]
[388400084,1759155967100,-300.0,0.00023988,2]
[388400085,1759155967131,-767.55,0.00023988,2]
[388400086,1759155967162,-480.0,0.00023989,2]
[388400087,1759155967195,-480.0,0.00023989,2]
[388400088,1759155967226,-481.7384302,0.00023989,2]
[388400089,1759155967256,-834.15,0.00023989,2]
[388400090,1759155967286,-14.4138896,0.00023989,2]
[388400091,1759155967456,-470.5053604,0.00023989,2]
[388400092,1759155967488,-1234.14,0.00023989,2]
[388400093,1759155967522,-480.0,0.00023989,2]
[388400094,1759155967775,-480.0,0.00023989,2]
[388400095,1759155967806,-5630.7192792,0.00023989,2]
[388400096,1759155967882,-10000.01,0.00023989,2]
[388400097,1759155983169,5000.0,0.00023401,2]
[388400098,1759155986864,-5000.0,0.00023749,2]
[388400099,1759155986912,-0.01,0.00023988,2]
[388400100,1759155996893,-245.42576699,0.00023748,2]
[388400101,1759155996927,-2475.76,0.00023988,2]
[388400102,1759155996959,-542.55,0.00023988,2]
[388400103,1759155997089,-3472.53846602,0.00023988,2]
[388400104,1759156000202,5000.0,0.00023401,2]
[388400116,1759156014063,1716.403035,0.00023017,2]
[388400117,1759156017103,-5000.0,0.00023748,2]
[388400118,1759156017163,-0.01,0.00023888,2]
[388400119,1759156026451,-480.0,0.00023649,2]
[388400120,1759156027595,-4520.0,0.00023649,2]
[388400121,1759156027625,-159.2450529,0.00023888,2]
[388400122,1759156027656,-300.0,0.00023987,2]
[388400123,1759156027801,-550.68153398,0.00023988,2]
[388400124,1759156027830,-690.61,0.00023988,2]
[388400125,1759156027862,-1346.94,0.00023988,2]
[388400126,1759156027894,-480.0,0.00023988,2]
[388400127,1759156027928,-633.93,0.00023988,2]
[388400128,1759156027958,-553.6,0.00023989,2]
[388400129,1759156027987,-480.0,0.00023989,2]
[388400130,1759156028145,-902.56,0.00023989,2]
[388400131,1759156028179,-971.3,0.00023989,2]
[388400132,1759156028209,-950.71,0.00023989,2]
[388400133,1759156028239,-480.0,0.00023989,2]
[388400134,1759156028270,-480.0,0.00023989,2]
[388400135,1759156028300,-480.0,0.00023989,2]
[388400136,1759156028331,-480.0,0.00023989,2]
[388400137,1759156028996,-90.00682624,0.00023989,2]
[388400138,1759156029064,-480.0,0.00023989,2]
[388400139,1759156029091,-510.87,0.00023989,2]
[388400140,1759156029152,-10000.01,0.00023989,2]
[388400141,1759156029307,-3160.71317376,0.00023989,2]
[388400142,1759156029317,-1000.0,0.00023989,2]
[388400143,1759156029327,-480.0,0.00023989,2]
[388400144,1759156029340,-1000.0,0.00023989,2]
[388400145,1759156029351,-1000.0,0.00023989,2]
[388400146,1759156029361,-241.05829301,0.00023989,2]
[388400147,1759156029371,-2460.69,0.00023989,2]
[388400148,1759156029381,-480.0,0.00023989,2]
[388400149,1759156029391,-177.54853323,0.00023989,2]
[388400150,1759156029427,-1324.23146677,0.00023989,2]
[388400151,1759156029437,-3699.12,0.00023989,2]
[388400152,1759156029446,-2184.61,0.00023989,2]
[388400153,1759156029456,-2000.0,0.00023989,7]
[388400154,1759156029466,-792.04853323,0.00023989,7]
[388400210,1759156036968,-5000.0,0.00023748,2]
[388400211,1759156037026,273.77202537,0.0002326,2]
[388400212,1759156037046,-0.01,0.00023988,2]
[388400213,1759156038989,1093.99301339,0.0002326,2]
[388400219,1759156056410,5000.0,0.00023401,2]
[388400220,1759156056976,-5000.0,0.00023747,2]
[388400221,1759156057024,-0.01,0.00023987,2]
[388400222,1759156057147,-1199.99,0.00023987,2]
[388400223,1759156057179,-479.99,0.00023988,2]
[388400224,1759156057212,-1642.24,0.00023988,2]
[388400225,1759156057245,-349.78,0.00023988,2]
[388400226,1759156057327,-2656.01,0.00023988,2]
[388400227,1759156057372,-1828.46,0.00023988,2]
[388400228,1759156057404,-480.0,0.00023988,2]
[388400229,1759156057432,-480.0,0.00023988,2]
[388400230,1759156057462,-480.0,0.00023988,2]
[388400231,1759156057493,-1207.95146677,0.00023989,7]
[388400232,1759156057524,-385.20212452,0.00023989,7]
[388400233,1759156057636,-276.78281742,0.00023989,7]
[388400234,1759156057667,-480.0,0.00023989,2]
[388400235,1759156057697,-1225.4,0.00023989,2]
[388400236,1759156057730,-2316.17436516,0.00023989,2]
[388400237,1759156057928,-1403.29563484,0.00023989,2]
[388400238,1759156057939,-276.78281742,0.00023989,2]
[388400239,1759156057978,-203.21718258,0.00023989,2]
[388400240,1759156058015,-4600.03563484,0.00023989,2]
[388400241,1759156058072,-393.50436516,0.00023989,2]
[388400242,1759156068045,252.75026363,0.000209,2]
[388400243,1759156068242,110219.19774626,0.00018,2]
[388400244,1759156072022,1892.12583676,0.00018,2]
[388400245,1759156077045,-5000.0,0.00023747,2]
[388400246,1759156077090,-0.01,0.00023987,2]
[388400247,1759156080095,5000.0,0.00023401,2]
[388400248,1759156080298,160.0,0.00023401,2]
[388400250,1759156087060,-159.99,0.00023987,2]
[388400251,1759156087094,-300.0,0.00023987,2]
[388400252,1759156087126,-492.75,0.00023988,2]
[388400253,1759156087156,-844.96,0.00023988,2]
[388400254,1759156087186,-480.0,0.00023988,2]
[388400255,1759156087217,-2401.17,0.00023988,2]
[388400256,1759156087522,-642.27,0.00023988,2]
[388400257,1759156090804,10000.0,0.00021,5]
[388400258,1759156091622,419.3596488,0.00010618,2]
[388400259,1759156093632,11498.94576682,0.000125,2]
[388400260,1759156095499,11960.0,0.00018,2]
[388400261,1759156099748,273.19276718,0.00021,2]
[388400262,1759156104224,5000.0,0.00023401,2]
[388400263,1759156105140,4488.2417109,0.00023401,2]
[388400264,1759156106706,285.57812652,0.0001,2]
[388400265,1759156107138,199.06268576,0.0002,2]
[388400266,1759156108060,356.67739289,0.00022,2]
[388400267,1759156108650,-5000.0,0.00023748,2]
[388400268,1759156108698,-0.01,0.00023988,2]
[388400269,1759156109730,14499.06423741,0.0002,2]
[388400270,1759156110162,605.0,0.000228,2]
[388400271,1759156111587,685.24199599,0.0001,7]
[388400272,1759156111719,92970.04255252,0.00017,2]
[388400273,1759156112807,309.28983086,0.00022,5]
[388400274,1759156113980,20000.0,0.0002,2]
[388400275,1759156114245,28422.57289928,0.00015,2]
[388400276,1759156114379,999.18175569,0.00022427,2]
[388400277,1759156114824,1370.63437966,0.0002061,2]
[388400278,1759156114882,304.96877241,0.000234,2]
[388400280,1759156116206,1000.0,0.0001,2]
[388400281,1759156117053,9707.31324746,0.00018,2]
[388400282,1759156117151,-2000.0,0.00023749,2]
[388400283,1759156117183,-2000.0,0.00023749,2]
[388400284,1759156117214,-716.84680683,0.00023889,2]
[388400285,1759156117245,-86.32638634,0.00023988,2]
[388400286,1759156117329,-393.66361366,0.00023988,2]
[388400287,1759156118378,170.67103699,0.0002,2]
[388400288,1759156120051,5000.0,0.00023401,2]
[388400289,1759156120081,303.82333125,0.00021,2]
[388400290,1759156120129,212.84501555,0.00016,2]
[388400291,1759156121968,1310.0001398,0.000203,2]
[388400292,1759156122180,6543.76759384,0.000215,2]
[388400293,1759156124197,72102.53457607,0.00019063,7]
[388400294,1759156124446,260.22742825,0.00015,2]
[388400295,1759156127324,-2000.0,0.00023749,2]
[388400296,1759156127356,-2000.0,0.00023749,2]
[388400297,1759156127391,-0.01,0.00023749,2]
[388400298,1759156127451,-1999.99,0.00023749,2]
[388400299,1759156127636,-2000.0,0.00023749,2]
[388400300,1759156127670,-2000.0,0.00023749,2]
[388400301,1759156127703,-0.01,0.00023749,2]
[388400302,1759156127771,-1999.99,0.00023749,2]
[388400303,1759156128071,5000.0,0.00023401,2]
[388400304,1759156128375,-2000.0,0.00023749,2]
[388400305,1759156128409,-1057.61,0.00023988,2]
[388400306,1759156128443,-1735.24,0.00023988,2]
[388400307,1759156128506,-414.31,0.00023988,2]
[388400308,1759156128563,-760.4,0.00023988,2]
[388400309,1759156128594,-3462.72,0.00023988,2]
[388400310,1759156128625,-480.0,0.00023988,2]
[388400311,1759156128657,-113.77,0.00023988,2]
[388400312,1759156128821,-366.23,0.00023988,2]
[388400313,1759156128873,-911.58,0.00023988,2]
[388400314,1759156128908,-1080.87,0.00023988,2]
[388400315,1759156128942,-641.66,0.00023988,2]
[388400316,1759156128976,-500.0,0.00023988,2]
[388400317,1759156129008,-500.0,0.00023988,2]
[388400318,1759156129041,-500.0,0.00023988,2]
[388400319,1759156129078,-500.0,0.00023988,2]
[388400320,1759156129111,-231.79,0.00023988,2]
[388400321,1759156129303,-268.21,0.00023988,2]
[388400322,1759156129929,-463.87,0.00023988,2]
[388400323,1759156129962,-268.21,0.00023988,2]
[388400324,1759156129995,-512.72931568,0.00023988,2]
[388400325,1759156130029,-500.0,0.00023988,2]
[388400326,1759156130063,-500.0,0.00023988,2]
[388400327,1759156130096,-512.72931568,0.00023988,2]
[388400328,1759156130127,-500.0,0.00023988,2]
[388400329,1759156130159,-500.0,0.00023988,2]
[388400330,1759156130188,-500.0,0.00023988,2]
[388400331,1759156130221,-500.0,0.00023988,2]
[388400332,1759156130368,-512.72931568,0.00023988,2]
[388400333,1759156130402,-500.0,0.00023988,2]
[388400334,1759156130439,-500.0,0.00023988,2]
[388400335,1759156130475,-500.0,0.00023988,2]
[388400336,1759156130507,-512.72931568,0.00023988,2]
[388400337,1759156130540,-500.0,0.00023988,2]
[388400338,1759156130573,-500.0,0.00023988,2]
[388400339,1759156130605,-500.0,0.00023988,2]
[388400340,1759156130638,-500.0,0.00023988,2]
[388400341,1759156130674,-449.09273728,0.00023988,2]
[388400342,1759156130799,-50.90726272,0.00023988,2]
[388400343,1759156130832,-512.72931568,0.00023988,2]
[388400344,1759156130865,-500.0,0.00023988,2]
[388400345,1759156130900,-500.0,0.00023988,2]
[388400346,1759156130933,-512.72931568,0.00023988,2]
[388400347,1759156130964,-250.0,0.00023988,2]
[388400348,1759156130997,-500.0,0.00023988,2]
[388400349,1759156131031,-500.0,0.00023988,2]
[388400350,1759156131065,-500.0,0.00023988,2]
[388400351,1759156131096,-512.72931568,0.00023988,2]
[388400352,1759156131127,-500.0,0.00023988,2]
[388400353,1759156131231,-512.72931568,0.00023988,2]
[388400354,1759156131262,-500.0,0.00023988,2]
[388400355,1759156131296,-500.0,0.00023988,2]
[388400356,1759156131327,-500.0,0.00023988,2]
[388400357,1759156131364,-500.0,0.00023988,2]
[388400358,1759156131398,-500.0,0.00023988,2]
[388400359,1759156131428,-512.72931568,0.00023988,2]
[388400360,1759156131460,-500.0,0.00023988,2]
[388400361,1759156131493,-500.0,0.00023988,2]
[388400362,1759156131527,-436.3634216,0.00023988,2]
[388400363,1759156133311,-76.36589408,0.00023988,2]
[388400364,1759156133320,-382.77712984,0.00023988,2]
[388400365,1759156133330,-40.85697608,0.00023988,2]
[388400366,1759156133349,-306.46991698,0.00023988,2]
[388400367,1759156133361,-206.2593987,0.00023988,2]
[388400368,1759156137198,-480.0,0.00023988,2]
[388400369,1759156137232,-293.7406013,0.00023988,2]
[388400370,1759156137266,-500.0,0.00023988,2]
[388400371,1759156137299,-512.72931568,0.00023988,2]
[388400372,1759156137329,-500.0,0.00023988,2]
[388400373,1759156137362,-500.0,0.00023988,2]
[388400374,1759156137398,-512.72931568,0.00023988,2]
[388400375,1759156137431,-500.0,0.00023988,2]
[388400376,1759156137465,-500.0,0.00023988,2]
[388400377,1759156137497,-512.72931568,0.00023988,2]
[388400378,1759156137618,-500.0,0.00023988,2]
[388400379,1759156137652,-512.72931568,0.00023988,2]
[388400380,1759156137686,-500.0,0.00023988,2]
[388400381,1759156137721,-500.0,0.00023988,2]
[388400382,1759156137756,-500.0,0.00023988,2]
[388400383,1759156137790,-512.72931568,0.00023988,2]
[388400384,1759156137825,-233.29848191,0.00023988,2]
[388400385,1759156137860,-512.72931568,0.00023988,2]
[388400386,1759156137893,-500.0,0.00023988,2]
[388400387,1759156137928,-512.72931568,0.00023988,2]
[388400388,1759156138102,-500.0,0.00023988,2]
[388400389,1759156138142,-500.0,0.00023988,2]
[388400390,1759156138179,-512.72931568,0.00023988,2]
[388400391,1759156138214,-500.0,0.00023988,2]
[388400392,1759156138249,-512.72931568,0.00023988,2]
[388400393,1759156138287,-500.0,0.00023988,2]
[388400394,1759156138323,-512.72931568,0.00023988,2]
[388400395,1759156138356,-500.0,0.00023988,2]
[388400396,1759156138395,-500.0,0.00023988,2]
[388400397,1759156138429,-410.90479024,0.00023988,2]
[388400398,1759156138552,-101.82452544,0.00023988,2]
[388400399,1759156138585,-512.72931568,0.00023988,2]
[388400400,1759156138621,-500.0,0.00023988,2]
[388400401,1759156138656,-500.0,0.00023988,2]
[388400402,1759156138698,-500.0,0.00023988,2]
[388400403,1759156138731,-512.72931568,0.00023988,2]
[388400404,1759156138769,-500.0,0.00023988,2]
[388400405,1759156138803,-500.0,0.00023988,2]
[388400406,1759156138835,-512.72931568,0.00023988,2]
[388400407,1759156139094,-500.0,0.00023988,2]
[388400408,1759156139130,-207.25573936,0.00023988,2]
[388400409,1759156140017,-194.55846879,0.00023888,2]
[388400410,1759156140027,-33.20036271,0.00023988,2]
[388400411,1759156140053,-448.2617185,0.00023988,2]
[388400412,1759156140064,-51.7382815,0.00023988,2]
[388400413,1759156140089,-253.73529482,0.00023988,2]
[388400414,1759156140099,-258.99402086,0.00023988,2]
[388400415,1759156147793,-5000.0,0.00023748,2]
[388400416,1759156147845,-0.01,0.00023888,2]
[388400417,1759156153119,-203.56282027,0.00023649,2]
[388400418,1759156157261,-4796.43717973,0.00023649,2]
[388400419,1759156157294,-176.62114445,0.00023888,2]
[388400420,1759156157339,-53.89335164,0.00023888,2]
[388400421,1759156157408,-230.52449608,0.00023958,2]
[388400422,1759156157440,-300.0,0.00023987,2]
[388400423,1759156157471,-775.05,0.00023988,2]
[388400424,1759156157503,-2750.38100784,0.00023988,2]
[388400425,1759156157585,-1888.09899216,0.00023988,2]
[388400426,1759156157630,-1499.11,0.00023988,2]
[388400427,1759156157661,-480.0,0.00023988,2]
[388400428,1759156157693,-480.0,0.00023988,2]
[388400429,1759156157722,-480.0,0.00023988,2]
[388400430,1759156157753,-659.06,0.00023988,2]
[388400431,1759156158088,-3318.12,0.00023988,2]
[388400432,1759156158121,-253.73529482,0.00023988,2]
[388400433,1759156158155,-500.0,0.00023988,2]
[388400434,1759156158186,-500.0,0.00023988,2]
[388400435,1759156158218,-343.57009468,0.00023988,2]
[388400436,1759156158327,-169.159221,0.00023988,2]
[388400437,1759156158361,-500.0,0.00023988,2]
[388400438,1759156158397,-154.84991336,0.00023988,2]
[388400439,1759156158434,-500.0,0.00023988,2]
[388400440,1759156158467,-512.72931568,0.00023988,2]
[388400441,1759156158499,-512.72931568,0.00023988,2]
[388400442,1759156158532,-500.0,0.00023988,2]
[388400443,1759156158563,-500.0,0.00023988,2]
[388400444,1759156158595,-512.72931568,0.00023988,2]
[388400445,1759156158627,-500.0,0.00023988,2]
[388400446,1759156158660,-512.72931568,0.00023988,2]
[388400447,1759156158713,-512.72931568,0.00023988,2]
[388400448,1759156158745,-500.0,0.00023988,2]
[388400449,1759156158781,-512.72931568,0.00023988,2]
[388400450,1759156158814,-512.72931568,0.00023988,2]
[388400451,1759156158847,-512.72931568,0.00023988,2]
[388400452,1759156158882,-512.72931568,0.00023988,2]
[388400453,1759156158916,-512.72931568,0.00023988,2]
[388400454,1759156158948,-512.72931568,0.00023988,2]
[388400455,1759156158981,-512.72931568,0.00023988,2]
[388400456,1759156159013,-283.61163344,0.00023988,2]
[388400457,1759156159281,-229.11768224,0.00023988,2]
[388400458,1759156159315,-512.72931568,0.00023988,2]
[388400459,1759156159348,-512.72931568,0.00023988,2]
[388400460,1759156159384,-512.72931568,0.00023988,2]
[388400461,1759156159420,-512.72931568,0.00023988,2]
[388400462,1759156159454,-512.72931568,0.00023988,2]
[388400463,1759156159488,-512.72931568,0.00023988,2]
[388400464,1759156159521,-512.72931568,0.00023988,2]
[388400465,1759156159557,-512.72931568,0.00023988,2]
[388400466,1759156159590,-512.72931568,0.00023988,2]
[388400467,1759156160266,-512.72931568,0.00023988,2]
[388400468,1759156160285,-512.72931568,0.00023988,2]
[388400469,1759156160315,-512.72931568,0.00023988,2]
[388400470,1759156160332,-512.72931568,0.00023988,2]
[388400471,1759156160349,-512.72931568,0.00023988,2]
[388400472,1759156160382,-512.72931568,0.00023988,2]
[388400473,1759156160471,-512.72931568,0.00023988,2]
[388400474,1759156160510,-312.64695328,0.00023988,2]
[388400477,1759156167400,-500.0,0.00023988,2]
[388400478,1759156167433,-712.66,0.00023988,2]
[388400479,1759156167465,-480.0,0.00023988,2]
[388400480,1759156167499,-200.0823624,0.00023988,2]
[388400481,1759156167531,-512.72931568,0.00023988,2]
[388400482,1759156167565,-512.72931568,0.00023988,2]
[388400483,1759156167598,-512.72931568,0.00023988,2]
[388400484,1759156167633,-512.72931568,0.00023988,2]
[388400485,1759156167665,-500.0,0.00023988,2]
[388400486,1759156167699,-500.0,0.00023988,2]
[388400487,1759156167998,-112.69074976,0.00023988,2]
[388400488,1759156177394,-5000.0,0.00023748,2]
[388400489,1759156177438,-0.01,0.00023988,2]
[388400490,1759156177514,-479.99,0.00023988,2]
[388400491,1759156177546,-707.58,0.00023988,2]
[388400492,1759156177578,-509.66897898,0.00023988,2]
[388400493,1759156177609,-642.49204707,0.00023988,2]
[388400494,1759156177641,-500.0,0.00023988,2]
[388400495,1759156177673,-642.49204707,0.00023988,2]
[388400496,1759156177706,-500.0,0.00023988,2]
[388400497,1759156177741,-642.49204707,0.00023988,2]
[388400498,1759156177772,-108.08771255,0.00023988,2]
[388400499,1759156177912,5000.0,0.00023401,2]
[388400500,1759156177965,-534.40433452,0.00023988,2]
[388400501,1759156177997,-500.0,0.00023988,2]
[388400502,1759156178030,-642.49204707,0.00023988,2]
[388400503,1759156178065,-642.49204707,0.00023988,2]
[388400504,1759156178099,-500.0,0.00023988,2]
[388400505,1759156178132,-642.49204707,0.00023988,2]
[388400506,1759156178165,-642.49204707,0.00023988,2]
[388400507,1759156178197,-478.22706252,0.00023988,2]
[388400508,1759156178230,-192.31878229,0.00023988,2]
[388400509,1759156178457,-450.17326478,0.00023988,2]
[388400510,1759156178490,-642.49204707,0.00023988,2]
[388400511,1759156178521,-642.49204707,0.00023988,2]
[388400512,1759156178554,-642.49204707,0.00023988,2]
[388400513,1759156178585,-642.49204707,0.00023988,2]
[388400514,1759156178617,-642.49204707,0.00023988,2]
[388400515,1759156178648,-642.49204707,0.00023988,2]
[388400516,1759156178680,-642.49204707,0.00023988,2]
[388400517,1759156179298,-370.13934997,0.00023988,2]
[388400518,1759156179315,-642.49204707,0.00023988,2]
[388400519,1759156179331,-104.77481146,0.00023988,2]
[388400520,1759156181964,200.462174,0.00023002,2]
[388400521,1759156187286,-2000.0,0.00023749,2]
[388400522,1759156187317,-1240.7537915,0.00023988,2]
[388400523,1759156187347,-480.0,0.00023988,2]
[388400524,1759156187380,-642.49204707,0.00023988,2]
[388400525,1759156187413,-631.02627579,0.00023988,2]
[388400526,1759156187508,-11.46577128,0.00023988,2]
[388400527,1759156187556,-642.49204707,0.00023988,2]
[388400528,1759156187587,-642.49204707,0.00023988,2]
[388400529,1759156187619,-642.49204707,0.00023988,2]
[388400530,1759156187652,-642.49204707,0.00023988,2]
[388400531,1759156187684,-642.49204707,0.00023988,2]
[388400532,1759156187717,-642.49204707,0.00023988,2]
[388400533,1759156187748,-642.49204707,0.00023988,2]
[388400534,1759156187780,-362.62929395,0.00023988,2]
[388400535,1759156187938,-279.86275312,0.00023988,2]
[388400536,1759156197329,-5000.0,0.00023748,2]
[388400537,1759156197371,-0.01,0.00023988,2]
[388400538,1759156197549,-2093.57,0.00023988,2]
[388400539,1759156197583,-2372.61,0.00023988,2]
[388400540,1759156197615,-480.0,0.00023988,2]
[388400541,1759156197800,-642.49204707,0.00023988,2]
[388400542,1759156197836,-480.0,0.00023989,2]
[388400543,1759156197870,-921.88,0.00023989,2]
[388400544,1759156197904,-480.0,0.00023989,2]
[388400545,1759156197938,-480.0,0.00023989,2]
[388400546,1759156197972,-718.23,0.00023989,2]
[388400547,1759156198006,-480.0,0.00023989,2]
[388400548,1759156198040,-565.61,0.00023989,2]
[388400549,1759156198113,-828.7,0.00023989,2]
[388400550,1759156198147,-480.0,0.00023989,2]
[388400551,1759156198181,-480.0,0.00023989,2]
[388400552,1759156198212,-480.0,0.00023989,2]
[388400553,1759156198244,-480.0,0.00023989,2]
[388400554,1759156198277,-873.77,0.00023989,2]
[388400555,1759156198311,-480.0,0.00023989,2]
[388400556,1759156198343,-480.0,0.00023989,2]
[388400557,1759156198375,-355.07,0.00023989,2]
[388400558,1759156198828,-315.77,0.00023988,2]
[388400559,1759156198851,-480.0,0.00023988,2]
[388400564,1759156207515,-5000.0,0.00023748,2]
[388400565,1759156207566,-0.01,0.00023987,2]
[388400568,1759156207767,-1199.99,0.00023987,2]
[388400569,1759156207802,-2768.72,0.00023988,2]
[388400570,1759156207835,-661.84,0.00023988,2]
[388400571,1759156207867,-221.15644413,0.00023988,2]
[388400574,1759156208157,-296.59711174,0.00023988,2]
[388400575,1759156208199,-300.0,0.00023988,2]
[388400576,1759156208233,-300.0,0.00023988,2]
[388400577,1759156208266,-480.0,0.00023988,2]
[388400578,1759156208299,-480.0,0.00023988,2]
[388400579,1759156208334,-124.93,0.00023989,2]
[388400580,1759156208368,-1087.06,0.00023989,2]
[388400581,1759156208404,-1779.34,0.00023989,2]
[388400582,1759156208436,-417.35,0.00023989,2]
[388400583,1759156208490,-62.65,0.00023989,2]
[388400584,1759156208522,-480.0,0.00023989,2]
[388400585,1759156208554,-1113.54,0.00023989,2]
[388400586,1759156208586,-560.49,0.00023989,2]
[388400587,1759156208619,-480.0,0.00023989,2]
[388400588,1759156208651,-218.61128393,0.00023989,2]
[388400589,1759156208684,-480.0,0.00023989,2]
[388400590,1759156208716,-480.0,0.00023989,2]
[388400591,1759156208750,-480.0,0.00023989,2]
[388400592,1759156208784,-480.0,0.00023989,2]
[388400593,1759156209450,-62.65,0.000236,2]
[388400594,1759156209482,-329.42743214,0.000236,2]
[388400595,1759156209660,-406.29353867,0.000236,2]
[388400596,1759156211236,465.3208372,0.0002326,2]
[388400597,1759156211730,666.0,0.00023004,2]
[388400598,1759156213599,1861.2833488,0.0002326,2]
[388400599,1759156215734,4183.69964726,0.0002326,2]
[388400600,1759156216205,-194.18492209,0.000236,2]
[388400601,1759156217349,5000.0,0.00023401,2]
[388400602,1759156217397,-10000.01,0.000236,2]
[388400603,1759156217529,-2409.6941071,0.000236,2]
[388400604,1759156217577,-542.04,0.00023988,2]
[388400605,1759156217629,-480.0,0.00023988,2]
[388400606,1759156217682,-864.95,0.00023988,2]
[388400607,1759156217730,-480.0,0.00023989,2]
[388400608,1759156217899,-1536.36,0.00023989,2]
[388400609,1759156217950,-1107.28,0.00023989,2]
[388400610,1759156217998,-1485.35,0.00023989,2]
[388400611,1759156218144,-1742.03,0.00023989,2]
[388400612,1759156218187,-3178.57,0.00023989,2]
[388400613,1759156218433,-158.81,0.00023989,2]
[388400614,1759156218445,-480.0,0.00023989,2]
[388400615,1759156218458,-480.0,0.00023989,2]
[388400616,1759156218471,-1026.91,0.00023989,2]
[388400617,1759156218483,-201.7617858,0.00023989,2]
[388400618,1759156227410,-5000.0,0.00023748,2]
[388400619,1759156227453,-0.01,0.00023988,2]
[388400620,1759156227602,-3963.05,0.00023988,2]
[388400621,1759156227632,-2073.91,0.00023988,2]
[388400622,1759156227757,-480.0,0.00023988,2]
[388400623,1759156227791,-480.0,0.00023988,2]